fUSD/lending_fUSD_20260601
["ID","MTS","AMOUNT","RATE_DAILY","PERIOD"]
[423652602,1780282240000,-1600.0,0.00010114,2]
[423652585,1780282240000,-2000.0,0.0001,2]
[423652604,1780282240000,-500.0,0.00010137,2]
[423652599,1780282240000,-205.92,0.00010046,2]
[423652592,1780282240000,-1731.75634,0.0001,2]
[423652575,1780282240000,-198.345359,0.0001,2]
[423652562,1780282240000,-466.0,9.717e-05,2]
[423652581,1780282240000,-340.0,0.0001,2]
[423652551,1780282240000,-466.0,9.717e-05,2]
[423652550,1780282240000,-210.60640966,9.717e-05,2]
[423652549,1780282240000,-466.0,9.717e-05,2]
[423652554,1780282240000,-466.0,9.717e-05,2]
[423652555,1780282240000,-466.0,9.717e-05,2]
[423652556,1780282240000,-466.0,9.717e-05,2]
[423652552,1780282240000,-466.0,9.717e-05,2]
[423652553,1780282240000,-466.0,9.717e-05,2]
[423652558,1780282240000,-466.0,9.717e-05,2]
[423652557,1780282240000,-466.0,9.717e-05,2]
[423652559,1780282240000,-466.0,9.717e-05,2]
[423652560,1780282240000,-466.0,9.717e-05,2]
[423652561,1780282240000,-466.0,9.717e-05,2]
[423652569,1780282240000,-11954.46,9.879e-05,2]
[423652570,1780282240000,-736.0,9.891e-05,2]
[423652572,1780282240000,-151.0,9.988e-05,2]
[423652571,1780282240000,-381.74957237,9.892e-05,2]
[423652568,1780282240000,-350.0,9.865e-05,2]
[423652605,1780282240000,-743.0,0.0001017,2]
[423652563,1780282240000,-466.0,9.717e-05,2]
[423652564,1780282240000,-468.48877466,9.717e-05,2]
[423652566,1780282240000,-500.0,9.863e-05,2]
[423652565,1780282240000,-350.0,9.761e-05,2]
[423652567,1780282240000,-500.0,9.863e-05,2]
[423652580,1780282240000,-318.52927345,0.0001,2]
[423652582,1780282240000,-340.0,0.0001,2]
[423652579,1780282240000,-350.06679062,0.0001,2]
[423652583,1780282240000,-340.33902497,0.0001,2]
[423652600,1780282240000,-350.0,0.00010094,2]
[423652591,1780282240000,-1731.75634,0.0001,2]
[423652613,1780282240000,-205.92,0.00010502,2]
[423652640,1780282240000,-150.0,0.00010959,2]
[423652644,1780282240000,-151.0,0.00010959,2]
[423652642,1780282240000,-151.0,0.00010959,2]
[423652643,1780282240000,-151.0,0.00010959,2]
[423652647,1780282240000,-151.0,0.00010959,2]
[423652646,1780282240000,-151.0,0.00010959,2]
[423652657,1780282240000,-150.0,0.00010989,2]
[423652649,1780282240000,-151.0,0.00010959,2]
[423652656,1780282240000,-205.92,0.00010959,2]
[423652652,1780282240000,-151.0,0.00010959,2]
[423652654,1780282240000,-151.0,0.00010959,2]
[423652653,1780282240000,-151.0,0.00010959,2]
[423652648,1780282240000,-151.0,0.00010959,2]
[423652638,1780282240000,-200.0,0.00010959,2]
[423652651,1780282240000,-151.0,0.00010959,2]
[423652650,1780282240000,-151.0,0.00010959,2]
[423652658,1780282240000,-150.0,0.00010989,2]
[423652660,1780282240000,-150.0,0.00010989,2]
[423652661,1780282240000,-150.0,0.00010989,2]
[423652662,1780282240000,-150.0,0.00010989,2]
[423652663,1780282240000,-150.0,0.00010989,2]
[423652664,1780282240000,-4000.0,0.0001103,2]
[423652665,1780282240000,-151.0,0.00011096,2]
[423652666,1780282240000,-151.0,0.00011096,2]
[423652670,1780282240000,-73007.77152307,0.00011099,2]
[423652659,1780282240000,-150.0,0.00010989,2]
[423652609,1780282240000,-4000.0,0.00010278,2]
[423652672,1780282240000,-73007.77152303,0.00011099,2]
[423652655,1780282240000,-179.064744,0.00010959,2]
[423652641,1780282240000,-500.0,0.00010959,2]
[423652668,1780282240000,-151.0,0.00011096,2]
[423652637,1780282240000,-200.0,0.00010959,2]
[423652639,1780282240000,-150.0,0.00010959,2]
[423652614,1780282240000,-4000.0,0.00010529,2]
[423652612,1780282240000,-284.43,0.00010435,2]
[423652611,1780282240000,-500.0,0.00010411,2]
[423652620,1780282240000,-10896.5908535,0.000109,2]
[423652621,1780282240000,-500.0,0.00010932,2]
[423652615,1780282240000,-6453.0,0.00010656,2]
[423652619,1780282240000,-10896.59085352,0.000109,2]
[423652616,1780282240000,-500.0,0.00010685,2]
[423652618,1780282240000,-1252.0,0.00010879,2]
[423652617,1780282240000,-4000.0,0.00010779,2]
[423652633,1780282240000,-500.0,0.00010958,5]
[423652623,1780282240000,-151.0,0.00010956,2]
[423652622,1780282240000,-259.27292711,0.00010955,2]
[423652610,1780282240000,-350.0,0.00010329,2]
[423652626,1780282240000,-500.0,0.00010958,3]
[423652624,1780282240000,-500.0,0.00010958,2]
[423652636,1780282240000,-200.0,0.00010959,2]
[423652645,1780282240000,-151.0,0.00010959,2]
[423652634,1780282240000,-500.0,0.00010958,6]
[423652635,1780282240000,-200.0,0.00010959,2]
[423652629,1780282240000,-523.13674882,0.00010958,6]
[423652627,1780282240000,-500.0,0.00010958,4]
[423652632,1780282240000,-500.0,0.00010958,4]
[423652630,1780282240000,-500.0,0.00010958,2]
[423652625,1780282240000,-500.0,0.00010958,2]
[423652628,1780282240000,-500.0,0.00010958,5]
[423652631,1780282240000,-500.0,0.00010958,3]
[423652760,1780282241000,-2000.0,0.00012,2]
[423652770,1780282241000,-1974.49,0.00012,2]
[423652768,1780282241000,-2000.0,0.00012,2]
[423652764,1780282241000,-2000.0,0.00012,2]
[423652749,1780282241000,-2000.0,0.00012,2]
[423652758,1780282241000,-2000.0,0.00012,2]
[423652753,1780282241000,-2000.0,0.00012,2]
[423652765,1780282241000,-2000.0,0.00012,2]
[423652751,1780282241000,-2000.0,0.00012,2]
[423652733,1780282241000,-1156.73,0.00012,2]
[423652762,1780282241000,-2000.0,0.00012,2]
[423652772,1780282241000,-2000.0,0.00012,2]
[423652797,1780282241000,-3259.22837469,0.00012216,2]
[423652776,1780282241000,-73007.77152303,0.00012024,2]
[423652778,1780282241000,-40532.18,0.00012055,2]
[423652781,1780282241000,-171.0,0.00012087,2]
[423652791,1780282241000,-6455.41454804,0.00012126,2]
[423652793,1780282241000,-16683.09758883,0.00012126,2]
[423652795,1780282241000,-753.53095286,0.0001217,2]
[423652789,1780282241000,-999.99,0.00012087,2]
[423652801,1780282241000,-171.0,0.00012226,2]
[423652785,1780282241000,-299.99,0.00012087,2]
[423652783,1780282241000,-150.99,0.00012087,2]
[423652799,1780282241000,-171.0,0.00012226,2]
[423652747,1780282241000,-2000.0,0.00012,2]
[423652782,1780282241000,-9999.99,0.00012087,2]
[423652774,1780282241000,-2000.0,0.00012,2]
[423652735,1780282241000,-481.97,0.00012,2]
[423652706,1780282241000,-4001.06,0.00011507,2]
[423652730,1780282241000,-76822.64920054,0.00011977,2]
[423652787,1780282241000,-6500.25,0.00012087,2]
[423652674,1780282241000,-73007.77152303,0.00011099,2]
[423652687,1780282241000,-76822.64920054,0.00011099,2]
[423652690,1780282241000,-743.0,0.0001117,2]
[423652692,1780282241000,-168.98995963,0.000112,2]
[423652682,1780282241000,-76822.64920054,0.00011099,2]
[423652677,1780282241000,-73007.77152303,0.00011099,2]
[423652679,1780282241000,-76822.64920058,0.00011099,2]
[423652684,1780282241000,-76822.64920054,0.00011099,2]
[423652695,1780282241000,-500.0,0.00011233,2]
[423652700,1780282241000,-2000.0,0.00011301,2]
[423652698,1780282241000,-76822.64920054,0.00011246,2]
[423652702,1780282241000,-73007.77152303,0.00011305,2]
[423652704,1780282241000,-205.92,0.00011416,2]
[423652708,1780282241000,-384.15143428,0.00011507,2]
[423652713,1780282241000,-151.0,0.00011638,2]
[423652717,1780282241000,-8610.11125818,0.000118,2]
[423652719,1780282241000,-476.29841804,0.00011809,2]
[423652715,1780282241000,-8911.0,0.00011721,2]
[423652711,1780282241000,-179.35756026,0.00011532,2]
[423652724,1780282241000,-205.92,0.00011872,2]
[423652726,1780282241000,-214.42,0.000119,2]
[423652722,1780282241000,-171.0,0.00011872,2]
[423652728,1780282241000,-174.0,0.00011972,2]
[423652738,1780282241000,-289.19,0.00012,2]
[423652740,1780282241000,-2000.0,0.00012,2]
[423652742,1780282241000,-2000.0,0.00012,2]
[423652745,1780282241000,-2000.0,0.00012,2]
[423652803,1780282241000,-171.0,0.00012226,2]
[423652755,1780282241000,-2000.0,0.00012,2]
[423652809,1780282241000,-11790.5197306,0.00012226,2]
[423652873,1780282241000,-400.0,0.00012365,2]
[423652861,1780282241000,-400.0,0.00012365,2]
[423652865,1780282241000,-400.0,0.00012365,2]
[423652877,1780282241000,-400.0,0.00012365,2]
[423652881,1780282241000,-304.24014866,0.00012365,2]
[423652879,1780282241000,-400.0,0.00012365,2]
[423652883,1780282241000,-400.0,0.00012365,2]
[423652885,1780282241000,-400.0,0.00012365,2]
[423652899,1780282241000,-400.0,0.00012365,2]
[423652891,1780282241000,-400.0,0.00012365,2]
[423652887,1780282241000,-400.0,0.00012365,2]
[423652893,1780282241000,-400.0,0.00012365,2]
[423652889,1780282241000,-400.0,0.00012365,2]
[423652897,1780282241000,-400.0,0.00012365,2]
[423652895,1780282241000,-400.0,0.00012365,2]
[423652901,1780282241000,-400.0,0.00012365,2]
[423652904,1780282241000,-400.0,0.00012365,2]
[423652906,1780282241000,-400.0,0.00012365,2]
[423652908,1780282241000,-400.0,0.00012365,2]
[423652911,1780282241000,-400.0,0.00012365,2]
[423652921,1780282241000,-400.0,0.00012365,2]
[423652923,1780282241000,-257.36084244,0.00012365,2]
[423652913,1780282241000,-400.0,0.00012365,2]
[423652928,1780282241000,-400.0,0.00012365,2]
[423652917,1780282241000,-400.0,0.00012365,2]
[423652915,1780282241000,-400.0,0.00012365,2]
[423652925,1780282241000,-400.0,0.00012365,2]
[423652863,1780282241000,-400.0,0.00012365,2]
[423652875,1780282241000,-400.0,0.00012365,2]
[423652805,1780282241000,-396266.8454492,0.00012226,2]
[423652858,1780282241000,-400.0,0.00012365,2]
[423652856,1780282241000,-400.0,0.00012365,2]
[423652807,1780282241000,-10455.7388756,0.00012226,2]
[423652811,1780282241000,-202619.2115057,0.00012226,2]
[423652813,1780282241000,-13449.0094047,0.00012226,2]
[423652821,1780282241000,-151.0,0.00012239,2]
[423652825,1780282241000,-151.0,0.00012239,2]
[423652819,1780282241000,-151.0,0.00012239,2]
[423652824,1780282241000,-151.0,0.00012239,2]
[423652817,1780282241000,-151.0,0.00012232,2]
[423652827,1780282241000,-151.0,0.00012239,2]
[423652829,1780282241000,-151.0,0.00012239,2]
[423652832,1780282241000,-151.0,0.00012239,2]
[423652842,1780282241000,-285.85439321,0.00012239,2]
[423652815,1780282241000,-789384.8299021,0.00012226,2]
[423652844,1780282241000,-239.429143,0.00012242,2]
[423652846,1780282241000,-264.84,0.00012329,2]
[423652869,1780282241000,-400.0,0.00012365,2]
[423652867,1780282241000,-400.0,0.00012365,2]
[423652854,1780282241000,-400.0,0.00012365,2]
[423652919,1780282241000,-400.0,0.00012365,2]
[423652850,1780282241000,-2000.0,0.00012329,2]
[423652852,1780282241000,-205.92,0.00012329,2]
[423652871,1780282241000,-400.0,0.00012365,2]
[423652834,1780282241000,-151.0,0.00012239,2]
[423652836,1780282241000,-151.0,0.00012239,2]
[423652838,1780282241000,-151.0,0.00012239,2]
[423652848,1780282241000,-221.02,0.00012329,2]
[423652840,1780282241000,-151.0,0.00012239,2]
[423653023,1780282242000,-500.0,0.00013698,2]
[423653031,1780282242000,-500.0,0.00013698,2]
[423653029,1780282242000,-500.0,0.00013698,2]
[423653017,1780282242000,-164.17568467,0.00013698,2]
[423653025,1780282242000,-500.0,0.00013698,2]
[423653009,1780282242000,-500.0,0.00013698,2]
[423653021,1780282242000,-500.0,0.00013698,2]
[423653015,1780282242000,-500.0,0.00013698,2]
[423653013,1780282242000,-500.0,0.00013698,2]
[423653011,1780282242000,-500.0,0.00013698,2]
[423653019,1780282242000,-500.0,0.00013698,2]
[423653022,1780282242000,-500.0,0.00013698,2]
[423653033,1780282242000,-500.0,0.00013698,2]
[423653057,1780282242000,-500.0,0.00013698,2]
[423653035,1780282242000,-500.0,0.00013698,2]
[423653037,1780282242000,-500.0,0.00013698,2]
[423653047,1780282242000,-512.71976924,0.00013698,2]
[423653051,1780282242000,-217.64655396,0.00013698,2]
[423653053,1780282242000,-500.0,0.00013698,2]
[423653049,1780282242000,-500.0,0.00013698,2]
[423653055,1780282242000,-500.0,0.00013698,2]
[423653039,1780282242000,-500.0,0.00013698,2]
[423653040,1780282242000,-501.52081181,0.00013698,2]
[423653059,1780282242000,-500.0,0.00013698,2]
[423653042,1780282242000,-500.0,0.00013698,2]
[423653045,1780282242000,-500.0,0.00013698,2]
[423652995,1780282242000,-500.0,0.00013698,2]
[423653061,1780282242000,-500.0,0.00013698,2]
[423653027,1780282242000,-500.0,0.00013698,2]
[423653007,1780282242000,-500.0,0.00013698,2]
[423652973,1780282242000,-500.0,0.00013698,2]
[423652993,1780282242000,-323.62814051,0.00013698,2]
[423652930,1780282242000,-400.0,0.00012365,2]
[423652934,1780282242000,-400.0,0.00012365,2]
[423653063,1780282242000,-500.0,0.00013698,2]
[423652936,1780282242000,-273.0,0.00012521,2]
[423652941,1780282242000,-309.0,0.000126,2]
[423652943,1780282242000,-500.0,0.0001269,2]
[423652938,1780282242000,-150.0,0.00012586,2]
[423652945,1780282242000,-76822.64920054,0.00012708,2]
[423652947,1780282242000,-2010.8172016,0.00012727,2]
[423652953,1780282242000,-10896.5908535,0.00013135,2]
[423652949,1780282242000,-73007.77152303,0.00012743,2]
[423652957,1780282242000,-236.21671476,0.00013343,2]
[423652951,1780282242000,-444.85,0.0001308,2]
[423652961,1780282242000,-73007.77152303,0.00013462,2]
[423652955,1780282242000,-444.85,0.00013285,2]
[423652959,1780282242000,-76822.64920054,0.00013438,2]
[423652963,1780282242000,-500.0,0.00013698,2]
[423652977,1780282242000,-500.0,0.00013698,2]
[423652975,1780282242000,-500.0,0.00013698,2]
[423652967,1780282242000,-500.0,0.00013698,2]
[423652971,1780282242000,-503.20310722,0.00013698,2]
[423652969,1780282242000,-500.0,0.00013698,2]
[423652965,1780282242000,-500.0,0.00013698,2]
[423653001,1780282242000,-500.0,0.00013698,2]
[423652999,1780282242000,-500.0,0.00013698,2]
[423652997,1780282242000,-500.0,0.00013698,2]
[423653003,1780282242000,-500.0,0.00013698,2]
[423652991,1780282242000,-500.0,0.00013698,2]
[423653005,1780282242000,-500.0,0.00013698,2]
[423652989,1780282242000,-500.0,0.00013698,2]
[423652932,1780282242000,-400.0,0.00012365,2]
[423653065,1780282242000,-500.0,0.00013698,2]
[423653077,1780282242000,-438.65136083,0.00013698,2]
[423653136,1780282242000,-629.25,0.00013698,2]
[423653140,1780282242000,-629.25,0.00013698,2]
[423653144,1780282242000,-629.25,0.00013698,2]
[423653138,1780282242000,-629.25,0.00013698,2]
[423653148,1780282242000,-629.25,0.00013698,2]
[423653146,1780282242000,-629.25,0.00013698,2]
[423653149,1780282242000,-629.25,0.00013698,2]
[423653152,1780282242000,-629.25,0.00013698,2]
[423653154,1780282242000,-629.25,0.00013698,2]
[423653156,1780282242000,-629.34,0.00013698,2]
[423653162,1780282242000,-500.0,0.00013698,2]
[423653166,1780282242000,-500.0,0.00013698,2]
[423653158,1780282242000,-500.0,0.00013698,2]
[423653160,1780282242000,-500.0,0.00013698,2]
[423653164,1780282242000,-500.0,0.00013698,2]
[423653168,1780282242000,-500.0,0.00013698,2]
[423653170,1780282242000,-500.0,0.00013698,2]
[423653172,1780282242000,-500.0,0.00013698,2]
[423653175,1780282242000,-500.0,0.00013698,2]
[423653174,1780282242000,-500.0,0.00013698,2]
[423653176,1780282242000,-500.0,0.00013698,2]
[423653187,1780282242000,-500.0,0.00013698,2]
[423653177,1780282242000,-500.0,0.00013698,2]
[423653179,1780282242000,-509.99712351,0.00013698,2]
[423653183,1780282242000,-500.0,0.00013698,2]
[423653185,1780282242000,-500.0,0.00013698,2]
[423653181,1780282242000,-500.0,0.00013698,2]
[423653069,1780282242000,-500.0,0.00013698,2]
[423653191,1780282242000,-500.0,0.00013698,2]
[423653135,1780282242000,-629.25,0.00013698,2]
[423653142,1780282242000,-629.25,0.00013698,2]
[423653189,1780282242000,-500.0,0.00013698,2]
[423653129,1780282242000,-629.25,0.00013698,2]
[423653133,1780282242000,-629.25,0.00013698,2]
[423653081,1780282242000,-500.0,0.00013698,2]
[423653071,1780282242000,-500.0,0.00013698,2]
[423653083,1780282242000,-500.0,0.00013698,2]
[423653073,1780282242000,-500.0,0.00013698,2]
[423653075,1780282242000,-500.0,0.00013698,2]
[423653079,1780282242000,-500.0,0.00013698,2]
[423653087,1780282242000,-500.0,0.00013698,2]
[423653089,1780282242000,-500.0,0.00013698,2]
[423653085,1780282242000,-500.0,0.00013698,2]
[423653091,1780282242000,-500.0,0.00013698,2]
[423653093,1780282242000,-500.0,0.00013698,2]
[423653096,1780282242000,-500.0,0.00013698,2]
[423653095,1780282242000,-500.0,0.00013698,2]
[423653114,1780282242000,-629.25,0.00013698,2]
[423653067,1780282242000,-501.86856505,0.00013698,2]
[423653108,1780282242000,-191.67725867,0.00013698,2]
[423653110,1780282242000,-629.25,0.00013698,2]
[423653127,1780282242000,-629.25,0.00013698,2]
[423653125,1780282242000,-629.25,0.00013698,2]
[423653122,1780282242000,-629.25,0.00013698,2]
[423653118,1780282242000,-629.25,0.00013698,2]
[423653113,1780282242000,-629.25,0.00013698,2]
[423653131,1780282242000,-629.25,0.00013698,2]
[423653103,1780282242000,-500.0,0.00013698,2]
[423653098,1780282242000,-500.0,0.00013698,2]
[423653120,1780282242000,-629.25,0.00013698,2]
[423653104,1780282242000,-500.0,0.00013698,2]
[423653101,1780282242000,-500.0,0.00013698,2]
[423653116,1780282242000,-629.25,0.00013698,2]
[423653106,1780282242000,-500.0,0.00013698,2]
[423653283,1780282243000,-500.0,0.00013698,2]
[423653281,1780282243000,-500.0,0.00013698,2]
[423653279,1780282243000,-500.0,0.00013698,2]
[423653276,1780282243000,-500.0,0.00013698,2]
[423653271,1780282243000,-500.0,0.00013698,2]
[423653267,1780282243000,-500.0,0.00013698,2]
[423653273,1780282243000,-500.0,0.00013698,2]
[423653262,1780282243000,-500.0,0.00013698,2]
[423653260,1780282243000,-500.0,0.00013698,2]
[423653265,1780282243000,-500.0,0.00013698,2]
[423653285,1780282243000,-500.0,0.00013698,2]
[423653269,1780282243000,-500.0,0.00013698,2]
[423653258,1780282243000,-500.0,0.00013698,2]
[423653294,1780282243000,-500.0,0.00013698,2]
[423653287,1780282243000,-500.0,0.00013698,2]
[423653290,1780282243000,-500.0,0.00013698,2]
[423653306,1780282243000,-500.0,0.00013698,2]
[423653300,1780282243000,-500.0,0.00013698,2]
[423653303,1780282243000,-500.0,0.00013698,2]
[423653296,1780282243000,-500.0,0.00013698,2]
[423653292,1780282243000,-191.48855202,0.00013698,2]
[423653309,1780282243000,-524.1016374,0.00013698,2]
[423653317,1780282243000,-1824.49,0.00013698,2]
[423653315,1780282243000,-1824.49,0.00013698,2]
[423653319,1780282243000,-1824.49,0.00013698,2]
[423653312,1780282243000,-1824.49,0.00013698,2]
[423653256,1780282243000,-500.0,0.00013698,2]
[423653298,1780282243000,-500.0,0.00013698,2]
[423653254,1780282243000,-500.0,0.00013698,2]
[423653217,1780282243000,-500.0,0.00013698,2]
[423653232,1780282243000,-500.0,0.00013698,2]
[423653321,1780282243000,-1824.49,0.00013698,2]
[423653193,1780282243000,-500.0,0.00013698,2]
[423653195,1780282243000,-512.43161432,0.00013698,2]
[423653197,1780282243000,-500.0,0.00013698,2]
[423653198,1780282243000,-500.0,0.00013698,2]
[423653200,1780282243000,-500.0,0.00013698,2]
[423653202,1780282243000,-500.0,0.00013698,2]
[423653204,1780282243000,-500.0,0.00013698,2]
[423653206,1780282243000,-500.0,0.00013698,2]
[423653208,1780282243000,-500.0,0.00013698,2]
[423653213,1780282243000,-500.0,0.00013698,2]
[423653212,1780282243000,-500.0,0.00013698,2]
[423653223,1780282243000,-500.0,0.00013698,2]
[423653210,1780282243000,-500.0,0.00013698,2]
[423653219,1780282243000,-500.0,0.00013698,2]
[423653215,1780282243000,-500.0,0.00013698,2]
[423653221,1780282243000,-500.0,0.00013698,2]
[423653226,1780282243000,-500.0,0.00013698,2]
[423653230,1780282243000,-500.0,0.00013698,2]
[423653228,1780282243000,-500.0,0.00013698,2]
[423653234,1780282243000,-500.0,0.00013698,2]
[423653238,1780282243000,-500.0,0.00013698,2]
[423653236,1780282243000,-500.0,0.00013698,2]
[423653251,1780282243000,-500.0,0.00013698,2]
[423653243,1780282243000,-207.9347959,0.00013698,2]
[423653245,1780282243000,-500.0,0.00013698,2]
[423653249,1780282243000,-181.33557319,0.00013698,2]
[423653247,1780282243000,-500.0,0.00013698,2]
[423653332,1780282243000,-500.0,0.00013698,2]
[423653240,1780282243000,-500.0,0.00013698,2]
[423653325,1780282243000,-1824.49,0.00013698,2]
[423653403,1780282243000,-500.0,0.00013698,2]
[423653414,1780282243000,-500.0,0.00013698,2]
[423653448,1780282243000,-500.0,0.00013698,2]
[423653407,1780282243000,-500.0,0.00013698,2]
[423653409,1780282243000,-500.0,0.00013698,2]
[423653411,1780282243000,-500.0,0.00013698,2]
[423653405,1780282243000,-500.0,0.00013698,2]
[423653413,1780282243000,-505.56076516,0.00013698,2]
[423653418,1780282243000,-500.0,0.00013698,2]
[423653416,1780282243000,-500.0,0.00013698,2]
[423653422,1780282243000,-500.0,0.00013698,2]
[423653421,1780282243000,-500.0,0.00013698,2]
[423653429,1780282243000,-526.00622582,0.00013698,2]
[423653425,1780282243000,-500.0,0.00013698,2]
[423653431,1780282243000,-500.0,0.00013698,2]
[423653441,1780282243000,-500.0,0.00013698,2]
[423653433,1780282243000,-500.0,0.00013698,2]
[423653435,1780282243000,-500.0,0.00013698,2]
[423653439,1780282243000,-500.0,0.00013698,2]
[423653446,1780282243000,-500.0,0.00013698,2]
[423653437,1780282243000,-500.0,0.00013698,2]
[423653444,1780282243000,-500.0,0.00013698,2]
[423653456,1780282243000,-500.0,0.00013698,2]
[423653450,1780282243000,-500.0,0.00013698,2]
[423653452,1780282243000,-500.0,0.00013698,2]
[423653454,1780282243000,-500.0,0.00013698,2]
[423653336,1780282243000,-500.0,0.00013698,2]
[423653401,1780282243000,-1824.66082404,0.00013698,2]
[423653384,1780282243000,-1824.49,0.00013698,2]
[423653427,1780282243000,-500.0,0.00013698,2]
[423653382,1780282243000,-500.0,0.00013698,2]
[423653386,1780282243000,-500.0,0.00013698,2]
[423653334,1780282243000,-1824.49,0.00013698,2]
[423653338,1780282243000,-1824.49,0.00013698,2]
[423653330,1780282243000,-1824.49,0.00013698,2]
[423653327,1780282243000,-500.0,0.00013698,2]
[423653342,1780282243000,-500.0,0.00013698,2]
[423653340,1780282243000,-1824.49,0.00013698,2]
[423653344,1780282243000,-1824.49,0.00013698,2]
[423653346,1780282243000,-500.0,0.00013698,2]
[423653348,1780282243000,-1824.49,0.00013698,2]
[423653362,1780282243000,-1824.49,0.00013698,2]
[423653350,1780282243000,-500.0,0.00013698,2]
[423653360,1780282243000,-1824.49,0.00013698,2]
[423653358,1780282243000,-500.0,0.00013698,2]
[423653323,1780282243000,-500.0,0.00013698,2]
[423653380,1780282243000,-1824.49,0.00013698,2]
[423653390,1780282243000,-500.0,0.00013698,2]
[423653378,1780282243000,-500.0,0.00013698,2]
[423653388,1780282243000,-1824.49,0.00013698,2]
[423653356,1780282243000,-1824.49,0.00013698,2]
[423653376,1780282243000,-1824.49,0.00013698,2]
[423653372,1780282243000,-1824.49,0.00013698,2]
[423653374,1780282243000,-500.0,0.00013698,2]
[423653366,1780282243000,-1824.49,0.00013698,2]
[423653352,1780282243000,-1824.49,0.00013698,2]
[423653368,1780282243000,-1824.49,0.00013698,2]
[423653364,1780282243000,-500.0,0.00013698,2]
[423653354,1780282243000,-500.0,0.00013698,2]
[423653370,1780282243000,-500.0,0.00013698,2]
[423653542,1780282244000,-500.0,0.00013698,2]
[423653546,1780282244000,-334.25010056,0.00013698,2]
[423653544,1780282244000,-500.0,0.00013698,2]
[423653548,1780282244000,-500.0,0.00013698,2]
[423653534,1780282244000,-500.0,0.00013698,2]
[423653522,1780282244000,-643.52,0.00013698,2]
[423653535,1780282244000,-500.0,0.00013698,2]
[423653533,1780282244000,-500.0,0.00013698,2]
[423653530,1780282244000,-500.0,0.00013698,2]
[423653520,1780282244000,-643.52,0.00013698,2]
[423653528,1780282244000,-643.64384292,0.00013698,2]
[423653540,1780282244000,-500.0,0.00013698,2]
[423653536,1780282244000,-500.0,0.00013698,2]
[423653538,1780282244000,-500.0,0.00013698,2]
[423653570,1780282244000,-500.0,0.00013698,2]
[423653552,1780282244000,-500.0,0.00013698,2]
[423653554,1780282244000,-500.0,0.00013698,2]
[423653564,1780282244000,-500.0,0.00013698,2]
[423653556,1780282244000,-500.0,0.00013698,2]
[423653566,1780282244000,-500.0,0.00013698,2]
[423653568,1780282244000,-500.0,0.00013698,2]
[423653558,1780282244000,-500.0,0.00013698,2]
[423653560,1780282244000,-500.0,0.00013698,2]
[423653573,1780282244000,-500.0,0.00013698,2]
[423653577,1780282244000,-500.0,0.00013698,2]
[423653575,1780282244000,-500.0,0.00013698,2]
[423653580,1780282244000,-500.0,0.00013698,2]
[423653583,1780282244000,-507.6626679,0.00013698,2]
[423653550,1780282244000,-500.0,0.00013698,2]
[423653518,1780282244000,-512.41431529,0.00013698,2]